{"text_format":"3","workbook":"xlsx","n_sheets":2,"sheets":["Vos dépenses","Rapport"],"not_rendered":{"charts":2,"images":1,"defined_names":6},"read":"whole","date_system":"1900"}

{"sheet":"Vos dépenses","index":0,"n_rows":26,"n_cols":8,"rows_kept":26,"merged":[[1,1,1,7]]}
[]
[null,"Créez votre budget alimentation. Consultez les conseils figurant dans des cellules de l’en-tête du tableau ci-dessous.\nVous pouvez créer un rapport dans la feuille de calcul Rapport."]
[null,"Date","Catégorie","Désignation","Quantité \n ","Prix \npar article","Prix \n(somme)","Lieu"]
[null,{"$f":"TODAY()","v":"2019-03-08"},"Bonbons","Friandises",{"v":0.25,"d":"0.3"},{"v":6,"d":"6.00 €"},{"$f":"Dépenses_mensuelles[[#This Row],[Prix \npar article]]*Dépenses_mensuelles[[#This Row],[Quantité \n ]]","v":{"v":1.5,"d":"1.50 €"}},"Épicerie"]
[null,{"$f":"TODAY()","v":"2019-03-08"},"Boissons","Cola",{"v":1,"d":"1.0"},{"v":1,"d":"1.00 €"},{"$f":"Dépenses_mensuelles[[#This Row],[Prix \npar article]]*Dépenses_mensuelles[[#This Row],[Quantité \n ]]","v":{"v":1,"d":"1.00 €"}},"Fast-food"]
[null,{"$f":"TODAY()-1","v":"2019-03-07"},"Plats préparés","Repas",{"v":1,"d":"1.0"},{"v":28,"d":"28.00 €"},{"$f":"Dépenses_mensuelles[[#This Row],[Prix \npar article]]*Dépenses_mensuelles[[#This Row],[Quantité \n ]]","v":{"v":28,"d":"28.00 €"}},"Fast-food"]
[null,{"$f":"TODAY()-1","v":"2019-03-07"},"Viande","Bœuf",1.2,{"v":15,"d":"15.00 €"},{"$f":"Dépenses_mensuelles[[#This Row],[Prix \npar article]]*Dépenses_mensuelles[[#This Row],[Quantité \n ]]","v":{"v":18,"d":"18.00 €"}},"Épicerie"]
[null,{"$f":"TODAY()-1","v":"2019-03-07"},"Alcool","Whisky",{"v":1,"d":"1.0"},{"v":25,"d":"25.00 €"},{"$f":"Dépenses_mensuelles[[#This Row],[Prix \npar article]]*Dépenses_mensuelles[[#This Row],[Quantité \n ]]","v":{"v":25,"d":"25.00 €"}},"Épicerie"]
[null,{"$f":"TODAY()-2","v":"2019-03-06"},"Boissons","Boissons gazeuses",{"v":6,"d":"6.0"},{"v":1,"d":"1.00 €"},{"$f":"Dépenses_mensuelles[[#This Row],[Prix \npar article]]*Dépenses_mensuelles[[#This Row],[Quantité \n ]]","v":{"v":6,"d":"6.00 €"}},"Livraison à domicile"]
[null,{"$f":"TODAY()-2","v":"2019-03-06"},"Plats préparés","Repas",{"v":1,"d":"1.0"},{"v":10,"d":"10.00 €"},{"$f":"Dépenses_mensuelles[[#This Row],[Prix \npar article]]*Dépenses_mensuelles[[#This Row],[Quantité \n ]]","v":{"v":10,"d":"10.00 €"}},"Livraison à domicile"]
[null,{"$f":"TODAY()-2","v":"2019-03-06"},"Fruits et légumes","Pommes",{"v":2,"d":"2.0"},{"v":5,"d":"5.00 €"},{"$f":"Dépenses_mensuelles[[#This Row],[Prix \npar article]]*Dépenses_mensuelles[[#This Row],[Quantité \n ]]","v":{"v":10,"d":"10.00 €"}},"Livraison à domicile"]
[null,{"$f":"TODAY()-2","v":"2019-03-06"},"Boissons","Eau",{"v":1,"d":"1.0"},{"v":1,"d":"1.00 €"},{"$f":"Dépenses_mensuelles[[#This Row],[Prix \npar article]]*Dépenses_mensuelles[[#This Row],[Quantité \n ]]","v":{"v":1,"d":"1.00 €"}},"Épicerie"]
[null,{"$f":"TODAY()-3","v":"2019-03-05"},"Boissons","Cola",{"v":1,"d":"1.0"},{"v":1,"d":"1.00 €"},{"$f":"Dépenses_mensuelles[[#This Row],[Prix \npar article]]*Dépenses_mensuelles[[#This Row],[Quantité \n ]]","v":{"v":1,"d":"1.00 €"}},"Fast-food"]
[null,{"$f":"TODAY()-3","v":"2019-03-05"},"Bonbons","Chocolat",{"v":2,"d":"2.0"},{"v":3,"d":"3.00 €"},{"$f":"Dépenses_mensuelles[[#This Row],[Prix \npar article]]*Dépenses_mensuelles[[#This Row],[Quantité \n ]]","v":{"v":6,"d":"6.00 €"}},"Épicerie"]
[null,{"$f":"TODAY()-3","v":"2019-03-05"},"Bonbons","Friandises",{"v":5,"d":"5.0"},{"v":1,"d":"1.00 €"},{"$f":"Dépenses_mensuelles[[#This Row],[Prix \npar article]]*Dépenses_mensuelles[[#This Row],[Quantité \n ]]","v":{"v":5,"d":"5.00 €"}},"Épicerie"]
[null,{"$f":"TODAY()-3","v":"2019-03-05"},"Boissons","Eau",{"v":2,"d":"2.0"},{"v":0.75,"d":"0.75 €"},{"$f":"Dépenses_mensuelles[[#This Row],[Prix \npar article]]*Dépenses_mensuelles[[#This Row],[Quantité \n ]]","v":{"v":1.5,"d":"1.50 €"}},"Cafés"]
[null,{"$f":"TODAY()-4","v":"2019-03-04"},"Plats préparés","Riz",{"v":1,"d":"1.0"},{"v":3.25,"d":"3.25 €"},{"$f":"Dépenses_mensuelles[[#This Row],[Prix \npar article]]*Dépenses_mensuelles[[#This Row],[Quantité \n ]]","v":{"v":3.25,"d":"3.25 €"}},"Restaurant"]
[null,{"$f":"TODAY()-4","v":"2019-03-04"},"Viande","Bœuf",0.6,{"v":12,"d":"12.00 €"},{"$f":"Dépenses_mensuelles[[#This Row],[Prix \npar article]]*Dépenses_mensuelles[[#This Row],[Quantité \n ]]","v":{"v":7.199999999999999,"d":"7.20 €"}},"Épicerie"]
[null,{"$f":"TODAY()-4","v":"2019-03-04"},"Alcool","Bière",{"v":1,"d":"1.0"},{"v":2,"d":"2.00 €"},{"$f":"Dépenses_mensuelles[[#This Row],[Prix \npar article]]*Dépenses_mensuelles[[#This Row],[Quantité \n ]]","v":{"v":2,"d":"2.00 €"}},"Restaurant"]
[null,{"$f":"TODAY()-4","v":"2019-03-04"},"Boissons","Boissons gazeuses",{"v":1,"d":"1.0"},{"v":1,"d":"1.00 €"},{"$f":"Dépenses_mensuelles[[#This Row],[Prix \npar article]]*Dépenses_mensuelles[[#This Row],[Quantité \n ]]","v":{"v":1,"d":"1.00 €"}},"Épicerie"]
[null,{"$f":"TODAY()-5","v":"2019-03-03"},"Plats préparés","Repas",{"v":1,"d":"1.0"},{"v":10,"d":"10.00 €"},{"$f":"Dépenses_mensuelles[[#This Row],[Prix \npar article]]*Dépenses_mensuelles[[#This Row],[Quantité \n ]]","v":{"v":10,"d":"10.00 €"}},"Fast-food"]
[null,{"$f":"TODAY()-5","v":"2019-03-03"},"Fruits et légumes","Bananes",{"v":2,"d":"2.0"},{"v":3,"d":"3.00 €"},{"$f":"Dépenses_mensuelles[[#This Row],[Prix \npar article]]*Dépenses_mensuelles[[#This Row],[Quantité \n ]]","v":{"v":6,"d":"6.00 €"}},"Livraison à domicile"]
[null,{"$f":"TODAY()-5","v":"2019-03-03"},"Boissons","Cola",{"v":1,"d":"1.0"},{"v":0.75,"d":"0.75 €"},{"$f":"Dépenses_mensuelles[[#This Row],[Prix \npar article]]*Dépenses_mensuelles[[#This Row],[Quantité \n ]]","v":{"v":0.75,"d":"0.75 €"}},"Épicerie"]
[null,{"$f":"TODAY()-5","v":"2019-03-03"},"Alcool","Bière",{"v":1,"d":"1.0"},{"v":1,"d":"1.00 €"},{"$f":"Dépenses_mensuelles[[#This Row],[Prix \npar article]]*Dépenses_mensuelles[[#This Row],[Quantité \n ]]","v":{"v":1,"d":"1.00 €"}},"Cafés"]
[null,{"$f":"TODAY()-5","v":"2019-03-03"},"Pain","Brioches",{"v":5,"d":"5.0"},{"v":0.2,"d":"0.20 €"},{"$f":"Dépenses_mensuelles[[#This Row],[Prix \npar article]]*Dépenses_mensuelles[[#This Row],[Quantité \n ]]","v":{"v":1,"d":"1.00 €"}},"Épicerie"]
[null,"Total",{"$nulls":4},{"$f":"SUBTOTAL(109,Dépenses_mensuelles[Prix \n(somme)])","v":{"v":146.2,"d":"146.20 €"}}]

{"sheet":"Rapport","index":1,"n_rows":29,"n_cols":6,"rows_kept":29,"merged":[[0,1,0,7],[5,1,5,2],[18,1,18,2]]}
[null,"Consultez les dépenses que vous avez effectuées au cours de la période choisie. "]
[]
[null,"Jour de début",{"$f":"TODAY()-1","v":"2019-03-07"},null,"Jour de fin",{"$f":"TODAY()","v":"2019-03-08"}]
[]
[]
[null,"Dépenses par catégorie d’aliments"]
[]
[null,"Catégorie d’aliments","Dépenses"]
[null,"Alcool",{"$f":"SUMIFS(Dépenses_mensuelles[Prix \n(somme)],Dépenses_mensuelles[Date],\">=\"&Date_Début,Dépenses_mensuelles[Date],\"<=\"&Date_Fin,Dépenses_mensuelles[Catégorie],Dépenses_par_cat_aliments[[#This Row],[Catégorie d’aliments]])","v":{"v":25,"d":"25.00 €"}}]
[null,"Pain",{"$f":"SUMIFS(Dépenses_mensuelles[Prix \n(somme)],Dépenses_mensuelles[Date],\">=\"&Date_Début,Dépenses_mensuelles[Date],\"<=\"&Date_Fin,Dépenses_mensuelles[Catégorie],Dépenses_par_cat_aliments[[#This Row],[Catégorie d’aliments]])","v":{"v":0,"d":"0.00 €"}}]
[null,"Boissons",{"$f":"SUMIFS(Dépenses_mensuelles[Prix \n(somme)],Dépenses_mensuelles[Date],\">=\"&Date_Début,Dépenses_mensuelles[Date],\"<=\"&Date_Fin,Dépenses_mensuelles[Catégorie],Dépenses_par_cat_aliments[[#This Row],[Catégorie d’aliments]])","v":{"v":1,"d":"1.00 €"}}]
[null,"Fruits et légumes",{"$f":"SUMIFS(Dépenses_mensuelles[Prix \n(somme)],Dépenses_mensuelles[Date],\">=\"&Date_Début,Dépenses_mensuelles[Date],\"<=\"&Date_Fin,Dépenses_mensuelles[Catégorie],Dépenses_par_cat_aliments[[#This Row],[Catégorie d’aliments]])","v":{"v":0,"d":"0.00 €"}}]
[null,"Viande",{"$f":"SUMIFS(Dépenses_mensuelles[Prix \n(somme)],Dépenses_mensuelles[Date],\">=\"&Date_Début,Dépenses_mensuelles[Date],\"<=\"&Date_Fin,Dépenses_mensuelles[Catégorie],Dépenses_par_cat_aliments[[#This Row],[Catégorie d’aliments]])","v":{"v":18,"d":"18.00 €"}}]
[null,"Plats préparés",{"$f":"SUMIFS(Dépenses_mensuelles[Prix \n(somme)],Dépenses_mensuelles[Date],\">=\"&Date_Début,Dépenses_mensuelles[Date],\"<=\"&Date_Fin,Dépenses_mensuelles[Catégorie],Dépenses_par_cat_aliments[[#This Row],[Catégorie d’aliments]])","v":{"v":28,"d":"28.00 €"}}]
[null,"Bonbons",{"$f":"SUMIFS(Dépenses_mensuelles[Prix \n(somme)],Dépenses_mensuelles[Date],\">=\"&Date_Début,Dépenses_mensuelles[Date],\"<=\"&Date_Fin,Dépenses_mensuelles[Catégorie],Dépenses_par_cat_aliments[[#This Row],[Catégorie d’aliments]])","v":{"v":1.5,"d":"1.50 €"}}]
[null,"Autres",{"$f":"SUMIFS(Dépenses_mensuelles[Prix \n(somme)],Dépenses_mensuelles[Date],\">=\"&Date_Début,Dépenses_mensuelles[Date],\"<=\"&Date_Fin,Dépenses_mensuelles[Catégorie],Dépenses_par_cat_aliments[[#This Row],[Catégorie d’aliments]])","v":{"v":0,"d":"0.00 €"}}]
[null,"Total",{"$f":"SUBTOTAL(109,Dépenses_par_cat_aliments[Dépenses])","v":{"v":73.5,"d":"73.50 €"}}]
[]
[null,"Dépenses par lieu"]
[]
[null,"Liste de lieux","Dépenses"]
[null,"Marché",{"$f":"SUMIFS(Dépenses_mensuelles[Prix \n(somme)],Dépenses_mensuelles[Date],\">=\"&Date_Début,Dépenses_mensuelles[Date],\"<=\"&Date_Fin,Dépenses_mensuelles[Lieu],Dépenses_par_lieu[[#This Row],[Liste de lieux]])","v":{"v":0,"d":"0.00 €"}}]
[null,"Cafés",{"$f":"SUMIFS(Dépenses_mensuelles[Prix \n(somme)],Dépenses_mensuelles[Date],\">=\"&Date_Début,Dépenses_mensuelles[Date],\"<=\"&Date_Fin,Dépenses_mensuelles[Lieu],Dépenses_par_lieu[[#This Row],[Liste de lieux]])","v":{"v":0,"d":"0.00 €"}}]
[null,"Fast-food",{"$f":"SUMIFS(Dépenses_mensuelles[Prix \n(somme)],Dépenses_mensuelles[Date],\">=\"&Date_Début,Dépenses_mensuelles[Date],\"<=\"&Date_Fin,Dépenses_mensuelles[Lieu],Dépenses_par_lieu[[#This Row],[Liste de lieux]])","v":{"v":29,"d":"29.00 €"}}]
[null,"Épicerie",{"$f":"SUMIFS(Dépenses_mensuelles[Prix \n(somme)],Dépenses_mensuelles[Date],\">=\"&Date_Début,Dépenses_mensuelles[Date],\"<=\"&Date_Fin,Dépenses_mensuelles[Lieu],Dépenses_par_lieu[[#This Row],[Liste de lieux]])","v":{"v":44.5,"d":"44.50 €"}}]
[null,"Livraison à domicile",{"$f":"SUMIFS(Dépenses_mensuelles[Prix \n(somme)],Dépenses_mensuelles[Date],\">=\"&Date_Début,Dépenses_mensuelles[Date],\"<=\"&Date_Fin,Dépenses_mensuelles[Lieu],Dépenses_par_lieu[[#This Row],[Liste de lieux]])","v":{"v":0,"d":"0.00 €"}}]
[null,"Restaurant",{"$f":"SUMIFS(Dépenses_mensuelles[Prix \n(somme)],Dépenses_mensuelles[Date],\">=\"&Date_Début,Dépenses_mensuelles[Date],\"<=\"&Date_Fin,Dépenses_mensuelles[Lieu],Dépenses_par_lieu[[#This Row],[Liste de lieux]])","v":{"v":0,"d":"0.00 €"}}]
[null,"Autres",{"$f":"SUMIFS(Dépenses_mensuelles[Prix \n(somme)],Dépenses_mensuelles[Date],\">=\"&Date_Début,Dépenses_mensuelles[Date],\"<=\"&Date_Fin,Dépenses_mensuelles[Lieu],Dépenses_par_lieu[[#This Row],[Liste de lieux]])","v":{"v":0,"d":"0.00 €"}}]
[null,"Total",{"$f":"SUBTOTAL(109,Dépenses_par_lieu[Dépenses])","v":{"v":73.5,"d":"73.50 €"}}]